[Event "Niedersachsen-ch 2020"]
[Site "Verden-Aller"]
[Date "2020.01.02"]
[Round "1.1"]
[White "Payyappat, Sreyas"]
[Black "Abel, Dennes"]
[Result "0-1"]
[ECO "B11"]
[WhiteElo "2166"]
[BlackElo "2463"]
[Annotator "RC"]
[PlyCount "102"]
[EventDate "2020.01.02"]
[EventType "swiss"]
[EventCountry "GER"]
[SourceTitle "playchess.com"]
[Source "ChessBase"]
[SourceQuality "1"]
[TimeControl "40/5400+30:1800+30"]

1. e4 {[%emt 0:00:00]} c6 {[%emt 0:00:00]} 2. Nf3 {[%emt 0:00:00]} d5 {[%emt 0:00:00]} 3. Nc3 {[%emt 0:00:00]} Bg4 {[%emt 0:00:06]} 4. exd5 {[%emt 0:04:52]} cxd5 {[%emt 0:01:16]} 5. Bb5+ {[%emt 0:00:21]} Nc6 {[%emt 0:01:14]} 6. d4 {[%emt 0:05:00]} Nf6 {[%emt 0:01:39]} 7. O-O {[%emt 0:01:12]} e6 {[%emt 0:00:46]} 8. Re1 {[%emt 0:00:47]} Rc8 {[%emt 0:02:10]} 9. Bf4 {[%emt 0:03:05]} Bb4 {[%emt 0:03:37]} 10. Qd3 {[%emt 0:01:51]} Bxf3 {[%emt 0:01:49]} 11. Qxf3 {[%emt 0:01:01]} a6 {[%emt 0:00:52]} 12. Bxc6+ {[%emt 0:00:13]} Rxc6 {[%emt 0:00:54]} 13. Re3 {[%emt 0:01:04]} O-O {[%emt 0:03:14]} 14. Bg5 {[%emt 0:01:57]} h6 {[%emt 0:03:17]} 15. Bxf6 {[%emt 0:06:37]} Qxf6 {[%emt 0:00:37]} 16. Qxf6 {[%emt 0:06:14]} gxf6 {[%emt 0:00:06]} 17. Rg3+ {[%emt 0:02:01]} Kh7 {[%emt 0:00:19]} 18. Re1 {[%emt 0:03:09]} Bxc3 {[%emt 0:03:11]} 19. bxc3 {[%emt 0:00:41]} Rfc8 {[%emt 0:04:40]} 20. Ree3 {[%emt 0:02:01]} Rb6 {[%emt 0:00:49]} 21. f4 {[%emt 0:02:54]} f5 {[%emt 0:02:17]} 22. Rgf3 {[%emt 0:05:51]} Rb2 {[%emt 0:01:59]} 23. Rf2 {[%emt 0:01:18]} Rxa2 {[%emt 0:01:36]} 24. g4 {[%emt 0:06:06]} Rg8 {[%emt 0:01:58]} 25. g5 {[%emt 0:01:36]} h5 {[%emt 0:01:04]} 26. c4 {[%emt 0:01:06]} dxc4 {[%emt 0:13:04]} 27. d5 {[%emt 0:02:30]} exd5 {[%emt 0:00:53]} 28. Re7 {[%emt 0:00:43]} Kg6 {[%emt 0:03:04]} 29. Rxb7 {[%emt 0:00:31]} Re8 {[%emt 0:01:51]} 30. Rd7 {[%emt 0:04:31]} Ra1+ {[%emt 0:01:03]} 31. Kg2 {[%emt 0:00:34]} Rd1 {[%emt 0:00:31]} 32. Rd6+ {[%emt 0:05:29]} Re6 {[%emt 0:00:43]} 33. Rxe6+ {[%emt 0:00:37]} fxe6 {[%emt 0:00:06]} 34. Re2 {[%emt 0:00:12]} Kf7 {[%emt 0:00:29]} 35. Kh3 {[%emt 0:01:35]} c3 {[%emt 0:01:00]} 36. g6+ {[%emt 0:05:38]} Kxg6 {[%emt 0:00:20]} 37. Rxe6+ {[%emt 0:00:25]} Kf7 {[%emt 0:00:11]} 38. Rxa6 {[%emt 0:00:59]} d4 {[%emt 0:00:27]} 39. Rc6 {[%emt 0:00:49]} Ke7 {[%emt 0:00:38]} 40. Kh4 {[%emt 0:04:32]} Kd7 {[%emt 0:00:28]} 41. Rc4 {[%emt 0:30:08]} Kd6 {[%emt 0:30:10]} 42. Kg5 {[%emt 0:02:45]} Kd5 {[%emt 0:00:09]} 43. Rc8 {[%emt 0:00:35]} Rd2 {[%emt 0:00:35]} 44. Rd8+ {[%emt 0:03:07]} Kc4 {[%emt 0:00:06]} 45. Rc8+ {[%emt 0:00:28]} Kb4 {[%emt 0:00:11]} 46. Rd8 {[%emt 0:00:36]} d3 {[%emt 0:01:46]} 47. cxd3 {[%emt 0:00:39]} c2 {[%emt 0:00:10]} 48. Rc8 {[%emt 0:00:19]} Rxh2 {[%emt 0:02:49]} 49. d4 {[%emt 0:03:03]} Kb3 {[%emt 0:00:43]} 50. Kxf5 {[%emt 0:00:46]} Rh3 {[%emt 0:01:04]} 51. Rb8+ {[%emt 0:05:01]} Ka2 {[%emt 0:01:06]} 0-1

[Event "Niedersachsen-ch 2020"]
[Site "Verden-Aller"]
[Date "2020.01.02"]
[Round "1.2"]
[White "Voege, Tobias"]
[Black "Haerig, Wilfried"]
[Result "1-0"]
[ECO "A36"]
[WhiteElo "2310"]
[BlackElo "2161"]
[Annotator "ChessBase"]
[PlyCount "115"]
[EventDate "2020.01.02"]
[EventType "swiss"]
[EventCountry "GER"]
[SourceTitle "playchess.com"]
[Source "ChessBase"]
[SourceQuality "1"]
[TimeControl "40/5400+30:1800+30"]

1. c4 {[%emt 0:00:00]} c5 {[%emt 0:00:04]} 2. Nc3 {[%emt 0:00:00]} Nc6 {[%emt 0:00:32]} 3. g3 {[%emt 0:00:00]} b6 {[%emt 0:04:15]} 4. Bg2 {[%emt 0:00:06]} Bb7 {[%emt 0:00:04]} 5. e4 {[%emt 0:01:33]} g6 {[%emt 0:01:20]} 6. Nge2 {[%emt 0:01:46]} Bg7 {[%emt 0:00:24]} 7. d3 {[%emt 0:00:17]} d6 {[%emt 0:01:42]} 8. a3 {[%emt 0:09:40]} e6 {[%emt 0:03:05]} 9. Rb1 {[%emt 0:00:39]} Nge7 {[%emt 0:07:08]} 10. h4 {[%emt 0:02:04]} O-O {[%emt 0:04:25]} 11. h5 {[%emt 0:03:35]} Nd4 {[%emt 0:03:20]} 12. Bg5 {[%emt 0:15:38]} Qd7 {[%emt 0:04:34]} 13. Qd2 {[%emt 0:05:35]} Nef5 {[%emt 0:22:57]} 14. Nxd4 {[%emt 0:13:14]} cxd4 {[%emt 0:03:58]} 15. Ne2 {[%emt 0:01:18]} f6 {[%emt 0:02:10]} 16. g4 {[%emt 0:04:40]} fxg5 {[%emt 0:02:49]} 17. gxf5 {[%emt 0:02:26]} exf5 {[%emt 0:02:11]} 18. Qxg5 {[%emt 0:14:28]} Rae8 {[%emt 0:04:40]} 19. f3 {[%emt 0:10:10]} Re5 {[%emt 0:12:01]} 20. hxg6 {[%emt 0:03:21]} fxe4 {[%emt 0:01:27]} 21. Qh4 {[%emt 0:00:33]} hxg6 {[%emt 0:02:55]} 22. Qh7+ {[%emt 0:03:23]} Kf7 {[%emt 0:00:05]} 23. fxe4 {[%emt 0:00:23]} Rh8 {[%emt 0:02:04]} 24. O-O+ {[%emt 0:00:12]} Rf5 {[%emt 0:02:09]} 25. Qxh8 {[%emt 0:02:03]} Bxh8 {[%emt 0:00:13]} 26. exf5 {[%emt 0:00:04]} gxf5 {[%emt 0:02:35]} 27. Bxb7 {[%emt 0:01:12]} Qxb7 {[%emt 0:00:09]} 28. Rxf5+ {[%emt 0:01:51]} Ke6 {[%emt 0:01:04]} 29. Ng3 {[%emt 0:01:29]} Be5 {[%emt 0:01:25]} 30. Re1 {[%emt 0:00:11]} Qg7 {[%emt 0:02:28]} 31. Rf3 {[%emt 0:00:04]} Kd7 {[%emt 0:02:21]} 32. Kg2 {[%emt 0:00:56]} Qg5 {[%emt 0:00:46]} 33. Ref1 {[%emt 0:00:46]} Kc6 {[%emt 0:00:31]} 34. b4 {[%emt 0:00:48]} b5 {[%emt 0:01:29]} 35. R1f2 {[%emt 0:01:48]} Kb6 {[%emt 0:00:13]} 36. Rc2 {[%emt 0:00:59]} Qg6 {[%emt 0:02:48]} 37. c5+ {[%emt 0:00:14]} dxc5 {[%emt 0:01:04]} 38. Rxc5 {[%emt 0:00:06]} Bxg3 {[%emt 0:00:33]} 39. Rxg3 {[%emt 0:00:05]} Qe6 {[%emt 0:00:05]} 40. Kf2 {[%emt 0:01:31]} Qa2+ {[%emt 0:01:02]} 41. Kf3 {[%emt 0:30:41]} Qe6 {[%emt 0:05:30]} 42. Rcg5 {[%emt 0:00:00]} Qe3+ {[%emt 0:01:27]} 43. Kg4 {[%emt 0:00:00]} Qd2 {[%emt 0:07:05]} 44. Kf5 {[%emt 0:00:00]} a5 {[%emt 0:00:35]} 45. Rg6+ {[%emt 0:00:00]} Kb7 {[%emt 0:00:55]} 46. Rg7+ {[%emt 0:00:00]} Kc8 {[%emt 0:00:44]} 47. Rh3 {[%emt 0:00:00]} Qf2+ {[%emt 0:00:47]} 48. Ke6 {[%emt 0:00:00]} Qf8 {[%emt 0:01:33]} 49. Rhh7 {[%emt 0:00:00]} Qe8+ {[%emt 0:03:14]} 50. Kd6 {[%emt 0:00:00]} Qd8+ {[%emt 0:01:32]} 51. Kc5 {[%emt 0:00:00]} Qf8+ {[%emt 0:01:57]} 52. Kxb5 {[%emt 0:00:00]} Qe8+ {[%emt 0:01:11]} 53. Kxa5 {[%emt 0:00:00]} Qe5+ {[%emt 0:00:10]} 54. b5 {[%emt 0:00:00]} Qe1+ {[%emt 0:00:48]} 55. Ka6 {[%emt 0:00:00]} Qe6+ {[%emt 0:00:33]} 56. b6 {[%emt 0:00:00]} Qe8 {[%emt 0:00:42]} 57. Rc7+ {[%emt 0:00:00]} Kd8 {[%emt 0:00:11]} 58. Kb7 {[%emt 0:00:00]} 1-0

[Event "Niedersachsen-ch 2020"]
[Site "Verden-Aller"]
[Date "2020.01.02"]
[Round "1.3"]
[White "Boehme, Arne"]
[Black "Hampel, Felix"]
[Result "1/2-1/2"]
[ECO "B06"]
[WhiteElo "2158"]
[BlackElo "2290"]
[Annotator "ChessBase"]
[PlyCount "139"]
[EventDate "2020.01.02"]
[EventType "swiss"]
[EventCountry "GER"]
[SourceTitle "playchess.com"]
[Source "ChessBase"]
[SourceQuality "1"]
[TimeControl "40/5400+30:1800+30"]

1. e4 {[%emt 0:00:00]} g6 {[%emt 0:00:00]} 2. d4 {[%emt 0:00:04]} Bg7 {[%emt 0:00:00]} 3. c3 {[%emt 0:00:34]} d6 {[%emt 0:00:00]} 4. Nf3 {[%emt 0:00:30]} Nf6 {[%emt 0:00:00]} 5. Nbd2 {[%emt 0:00:05]} O-O {[%emt 0:00:01]} 6. h3 {[%emt 0:01:13]} Nc6 {[%emt 0:00:36]} 7. Bd3 {[%emt 0:02:49]} e5 {[%emt 0:00:48]} 8. O-O {[%emt 0:01:15]} Nh5 {[%emt 0:00:24]} 9. Nb3 {[%emt 0:00:17]} a5 {[%emt 0:00:07]} 10. a4 {[%emt 0:00:13]} h6 {[%emt 0:04:53]} 11. Re1 {[%emt 0:01:34]} Qf6 {[%emt 0:01:37]} 12. Bf1 {[%emt 0:04:54]} Nf4 {[%emt 0:00:45]} 13. Kh2 {[%emt 0:02:59]} g5 {[%emt 0:01:53]} 14. d5 {[%emt 0:09:59]} Nb8 {[%emt 0:06:18]} 15. g3 {[%emt 0:01:36]} Ng6 {[%emt 0:06:22]} 16. Be3 {[%emt 0:07:38]} Qe7 {[%emt 0:11:02]} 17. Bg2 {[%emt 0:02:59]} g4 {[%emt 0:05:17]} 18. Ng1 {[%emt 0:04:20]} h5 {[%emt 0:03:42]} 19. hxg4 {[%emt 0:12:51]} hxg4 {[%emt 0:19:09]} 20. f3 {[%emt 0:02:59]} gxf3 {[%emt 0:01:00]} 21. Bxf3 {[%emt 0:05:34]} f5 {[%emt 0:03:36]} 22. exf5 {[%emt 0:02:06]} Bxf5 {[%emt 0:00:25]} 23. Bg4 {[%emt 0:01:30]} Qd7 {[%emt 0:08:21]} 24. Bxf5 {[%emt 0:00:21]} Qxf5 {[%emt 0:00:52]} 25. Rf1 {[%emt 0:01:34]} Qe4 {[%emt 0:01:38]} 26. Rxf8+ {[%emt 0:01:26]} Nxf8 {[%emt 0:01:37]} 27. Qf3 {[%emt 0:03:57]} Qg6 {[%emt 0:07:03]} 28. Nd2 {[%emt 0:08:34]} Nbd7 {[%emt 0:00:45]} 29. Nh3 {[%emt 0:05:26]} Nh7 {[%emt 0:00:48]} 30. Kg2 {[%emt 0:06:02]} Ndf6 {[%emt 0:01:45]} 31. Nf2 {[%emt 0:01:44]} Rf8 {[%emt 0:07:16]} 32. Rh1 {[%emt 0:01:38]} e4 {[%emt 0:02:00]} 33. Nfxe4 {[%emt 0:00:37]} Nxd5 {[%emt 0:00:39]} 34. Qe2 {[%emt 0:00:12]} Re8 {[%emt 0:01:51]} 35. Qc4 {[%emt 0:02:06]} c6 {[%emt 0:00:25]} 36. Bf4 {[%emt 0:02:41]} Be5 {[%emt 0:01:48]} 37. Rh6 {[%emt 0:00:54]} Qg7 {[%emt 0:03:15]} 38. Rh4 {[%emt 0:01:54]} Bxf4 {[%emt 0:00:30]} 39. Rxf4 {[%emt 0:00:05]} Kh8 {[%emt 0:00:15]} 40. Rf3 {[%emt 0:00:21]} Qe5 {[%emt 0:00:45]} 41. Qd4 {[%emt 0:04:48]} Qxd4 {[%emt 0:03:19]} 42. cxd4 {[%emt 0:00:06]} Re6 {[%emt 0:06:06]} 43. Rf7 {[%emt 0:02:22]} Nhf6 {[%emt 0:01:41]} 44. Nxf6 {[%emt 0:00:56]} Nxf6 {[%emt 0:00:06]} 45. Nc4 {[%emt 0:04:59]} b5 {[%emt 0:04:15]} 46. Nxa5 {[%emt 0:01:56]} Kg8 {[%emt 0:02:33]} 47. Rb7 {[%emt 0:04:05]} Re2+ {[%emt 0:01:22]} 48. Kh3 {[%emt 0:00:03]} bxa4 {[%emt 0:01:09]} 49. Nxc6 {[%emt 0:00:14]} Nd5 {[%emt 0:03:42]} 50. Kh4 {[%emt 0:03:31]} Rc2 {[%emt 0:00:47]} 51. Nd8 {[%emt 0:00:34]} Rd2 {[%emt 0:01:16]} 52. Ne6 {[%emt 0:00:11]} Re2 {[%emt 0:00:55]} 53. Nf4 {[%emt 0:04:31]} Nxf4 {[%emt 0:04:16]} 54. gxf4 {[%emt 0:00:05]} Re4 {[%emt 0:00:07]} 55. Kg5 {[%emt 0:00:12]} Rxd4 {[%emt 0:00:05]} 56. f5 {[%emt 0:00:42]} Rd2 {[%emt 0:01:49]} 57. Kf6 {[%emt 0:00:20]} Rf2 {[%emt 0:00:20]} 58. Rb8+ {[%emt 0:00:44]} Kh7 {[%emt 0:00:07]} 59. Ke6 {[%emt 0:01:30]} d5 {[%emt 0:04:22]} 60. f6 {[%emt 0:00:23]} Re2+ {[%emt 0:00:10]} 61. Kf7 {[%emt 0:01:20]} Rc2 {[%emt 0:00:16]} 62. Rb4 {[%emt 0:00:32]} Rc7+ {[%emt 0:00:04]} 63. Ke6 {[%emt 0:00:18]} Rc6+ {[%emt 0:00:57]} 64. Ke5 {[%emt 0:00:24]} Kg6 {[%emt 0:01:57]} 65. Rg4+ {[%emt 0:03:15]} Kf7 {[%emt 0:00:09]} 66. Rg7+ {[%emt 0:00:39]} Kf8 {[%emt 0:00:13]} 67. Ra7 {[%emt 0:04:08]} Rb6 {[%emt 0:00:16]} 68. Rxa4 {[%emt 0:01:06]} Rxb2 {[%emt 0:00:07]} 69. Kxd5 {[%emt 0:00:20]} Kf7 {[%emt 0:00:18]} 70. Ke4 1/2-1/2

[Event "Niedersachsen-ch 2020"]
[Site "Verden-Aller"]
[Date "2020.01.02"]
[Round "1.4"]
[White "Polster, Christian"]
[Black "Riemay, David"]
[Result "0-1"]
[ECO "B08"]
[WhiteElo "2279"]
[BlackElo "2139"]
[Annotator "ChessBase"]
[PlyCount "75"]
[EventDate "2020.01.02"]
[EventType "swiss"]
[EventCountry "GER"]
[SourceTitle "playchess.com"]
[Source "ChessBase"]
[SourceQuality "1"]
[TimeControl "40/5400+30:1800+30"]

1. e4 d6 2. d4 Nf6 {[%emt 0:00:00]} 3. Nc3 {[%emt 0:00:18]} g6 {[%emt 0:00:00]} 4. h3 {[%emt 0:03:51]} Bg7 {[%emt 0:01:13]} 5. Nf3 {[%emt 0:00:00]} O-O {[%emt 0:01:19]} 6. Be3 {[%emt 0:02:18]} a6 {[%emt 0:01:24]} 7. e5 {[%emt 0:21:32]} Nfd7 {[%emt 0:02:53]} 8. exd6 {[%emt 0:14:29]} cxd6 {[%emt 0:01:50]} 9. Be2 {[%emt 0:00:40]} b5 {[%emt 0:04:44]} 10. O-O {[%emt 0:09:22]} Bb7 {[%emt 0:01:05]} 11. a4 {[%emt 0:06:11]} b4 {[%emt 0:00:36]} 12. Na2 {[%emt 0:00:25]} a5 {[%emt 0:00:33]} 13. c3 {[%emt 0:00:44]} bxc3 {[%emt 0:00:41]} 14. bxc3 {[%emt 0:00:33]} Nb6 {[%emt 0:06:09]} 15. Qb3 {[%emt 0:06:32]} N8d7 {[%emt 0:01:25]} 16. c4 {[%emt 0:05:19]} Rb8 {[%emt 0:00:52]} 17. Qc3 {[%emt 0:14:46]} Nc5 {[%emt 0:12:43]} 18. Rab1 {[%emt 0:08:47]} Be4 {[%emt 0:07:31]} 19. Rb5 {[%emt 0:02:41]} Bc6 {[%emt 0:03:27]} 20. Qxa5 {[%emt 0:01:01]} Bxb5 {[%emt 0:00:32]} 21. dxc5 {[%emt 0:00:30]} Bxc4 {[%emt 0:01:07]} 22. cxb6 {[%emt 0:00:23]} Bxe2 {[%emt 0:00:22]} 23. Rb1 {[%emt 0:00:32]} Bxf3 {[%emt 0:00:13]} 24. gxf3 {[%emt 0:00:10]} Qd7 {[%emt 0:00:35]} 25. Qb5 {[%emt 0:00:52]} Qxh3 {[%emt 0:01:13]} 26. Nb4 {[%emt 0:00:27]} Qxf3 {[%emt 0:04:57]} 27. Nc6 {[%emt 0:00:21]} f5 {[%emt 0:08:17]} 28. Nxb8 {[%emt 0:00:37]} f4 {[%emt 0:00:11]} 29. Nd7 {[%emt 0:00:34]} fxe3 {[%emt 0:01:00]} 30. Qb3+ {[%emt 0:00:28]} d5 {[%emt 0:00:31]} 31. Qxe3 {[%emt 0:00:36]} Qg4+ {[%emt 0:00:11]} 32. Qg3 {[%emt 0:00:09]} Qe4 {[%emt 0:08:15]} 33. Rb3 {[%emt 0:00:50]} Rc8 {[%emt 0:03:05]} 34. Qf3 {[%emt 0:00:30]} Rc1+ 35. Kg2 Qe1 {[%emt 0:04:44]} 36. Qxd5+ {[%emt 0:00:53]} e6 {[%emt 0:00:02]} 37. Qa8+ {[%emt 0:00:36]} Kf7 {[%emt 0:00:02]} 38. Ne5+ {[%emt 0:00:00]} 0-1

[Event "Niedersachsen-ch 2020"]
[Site "Verden-Aller"]
[Date "2020.01.02"]
[Round "1.5"]
[White "Schulz, Daniel"]
[Black "Schulze, Torben"]
[Result "0-1"]
[ECO "A41"]
[WhiteElo "2130"]
[BlackElo "2266"]
[Annotator "ChessBase"]
[PlyCount "70"]
[EventDate "2020.01.02"]
[EventType "swiss"]
[EventCountry "GER"]
[SourceTitle "playchess.com"]
[Source "ChessBase"]
[SourceQuality "1"]
[TimeControl "40/5400+30:1800+30"]

1. Nf3 {[%emt 0:00:00]} d6 {[%emt 0:00:00]} 2. d4 {[%emt 0:00:00]} Bg4 {[%emt 0:00:00]} 3. c4 {[%emt 0:00:28]} c6 {[%emt 0:00:23]} 4. g3 {[%emt 0:04:39]} Bxf3 {[%emt 0:00:54]} 5. exf3 {[%emt 0:01:05]} d5 {[%emt 0:00:17]} 6. Nc3 {[%emt 0:07:34]} e6 {[%emt 0:01:49]} 7. Bf4 {[%emt 0:04:00]} dxc4 {[%emt 0:09:25]} 8. Bxc4 {[%emt 0:05:49]} Nf6 {[%emt 0:03:08]} 9. Qb3 {[%emt 0:24:04]} b5 {[%emt 0:15:15]} 10. Be2 {[%emt 0:03:58]} Nd5 {[%emt 0:06:44]} 11. Bd2 {[%emt 0:04:18]} Nd7 {[%emt 0:00:58]} 12. a4 {[%emt 0:05:07]} a6 {[%emt 0:01:37]} 13. Nxd5 {[%emt 0:16:04]} exd5 {[%emt 0:00:40]} 14. Qe3+ {[%emt 0:01:01]} Be7 {[%emt 0:04:41]} 15. Bb4 {[%emt 0:01:17]} Nb6 {[%emt 0:16:19]} 16. b3 {[%emt 0:12:35]} bxa4 {[%emt 0:06:02]} 17. bxa4 {[%emt 0:01:01]} a5 {[%emt 0:01:23]} 18. Bc5 {[%emt 0:00:40]} Nc8 {[%emt 0:01:30]} 19. O-O {[%emt 0:01:32]} O-O {[%emt 0:00:43]} 20. Rfc1 {[%emt 0:00:37]} Rb8 {[%emt 0:03:46]} 21. Bxe7 {[%emt 0:02:57]} Nxe7 {[%emt 0:00:05]} 22. Rab1 {[%emt 0:00:22]} Qd6 {[%emt 0:04:39]} 23. Qc3 {[%emt 0:00:19]} Rb4 {[%emt 0:02:17]} 24. Rxb4 {[%emt 0:01:01]} axb4 {[%emt 0:00:02]} 25. Qb3 {[%emt 0:00:55]} Nf5 {[%emt 0:10:21]} 26. Rd1 {[%emt 0:00:11]} Ra8 {[%emt 0:00:45]} 27. Bf1 {[%emt 0:01:09]} g6 {[%emt 0:00:25]} 28. Kg2 {[%emt 0:00:32]} Qb8 {[%emt 0:01:10]} 29. Rd2 {[%emt 0:00:43]} Qb6 {[%emt 0:00:22]} 30. Rb2 {[%emt 0:00:29]} Qxd4 {[%emt 0:06:08]} 31. Qxb4 {[%emt 0:00:26]} Rxa4 {[%emt 0:00:01]} 32. Qb8+ {[%emt 0:00:33]} Kg7 {[%emt 0:00:05]} 33. Rb7 {[%emt 0:00:33]} Ra2 {[%emt 0:01:44]} 34. Rxf7+ {[%emt 0:00:29]} Kxf7 {[%emt 0:00:11]} 35. Qc7+ {[%emt 0:00:28]} Ne7 0-1

[Event "Niedersachsen-ch 2020"]
[Site "Verden-Aller"]
[Date "2020.01.02"]
[Round "1.6"]
[White "Ewert, Hannes"]
[Black "Ermel, Dirk"]
[Result "1/2-1/2"]
[ECO "A06"]
[WhiteElo "2256"]
[BlackElo "2125"]
[Annotator "ChessBase"]
[PlyCount "88"]
[EventDate "2020.01.02"]
[EventType "swiss"]
[EventCountry "GER"]
[SourceTitle "playchess.com"]
[Source "ChessBase"]
[SourceQuality "1"]
[TimeControl "40/5400+30:1800+30"]

1. Nf3 {[%emt 0:00:00]} d5 {[%emt 0:00:00]} 2. g3 {[%emt 0:00:00]} Nf6 {[%emt 0:00:26]} 3. c4 {[%emt 0:00:00]} c6 {[%emt 0:00:57]} 4. Bg2 {[%emt 0:00:01]} e6 {[%emt 0:01:24]} 5. b3 {[%emt 0:00:41]} Nbd7 {[%emt 0:00:41]} 6. Bb2 {[%emt 0:00:34]} Be7 {[%emt 0:00:20]} 7. O-O {[%emt 0:00:22]} O-O {[%emt 0:00:20]} 8. Qc2 {[%emt 0:00:34]} Re8 {[%emt 0:13:59]} 9. d3 {[%emt 0:03:58]} b6 {[%emt 0:07:26]} 10. Nc3 {[%emt 0:07:50]} Bb7 {[%emt 0:01:00]} 11. e4 {[%emt 0:03:38]} Qc7 {[%emt 0:16:47]} 12. e5 {[%emt 0:18:34]} Ng4 {[%emt 0:01:57]} 13. d4 {[%emt 0:00:13]} Rac8 {[%emt 0:10:13]} 14. Rad1 {[%emt 0:05:00]} Qb8 {[%emt 0:05:58]} 15. Rfe1 {[%emt 0:03:18]} c5 {[%emt 0:06:52]} 16. cxd5 {[%emt 0:02:32]} cxd4 {[%emt 0:03:14]} 17. dxe6 {[%emt 0:07:42]} fxe6 {[%emt 0:01:17]} 18. Rxd4 {[%emt 0:03:03]} Bxf3 {[%emt 0:08:54]} 19. Bxf3 {[%emt 0:00:27]} Ngxe5 {[%emt 0:00:14]} 20. Bg2 {[%emt 0:03:14]} Rf8 {[%emt 0:02:17]} 21. Qd1 {[%emt 0:25:27]} Bc5 {[%emt 0:02:29]} 22. Rd2 {[%emt 0:03:26]} Nd3 {[%emt 0:07:06]} 23. Ne4 {[%emt 0:00:01]} Nxb2 {[%emt 0:01:14]} 24. Rxb2 {[%emt 0:00:02]} Bb4 {[%emt 0:00:32]} 25. Rf1 {[%emt 0:06:25]} Nf6 {[%emt 0:00:11]} 26. Qe2 {[%emt 0:00:35]} Qe5 {[%emt 0:01:27]} 27. Nxf6+ {[%emt 0:00:02]} Qxf6 {[%emt 0:00:12]} 28. Be4 {[%emt 0:00:48]} Bc5 {[%emt 0:00:41]} 29. Kg2 {[%emt 0:00:13]} e5 {[%emt 0:00:19]} 30. h4 {[%emt 0:00:54]} Bd4 {[%emt 0:00:22]} 31. Rd2 {[%emt 0:00:29]} Rfd8 {[%emt 0:01:06]} 32. Qg4 {[%emt 0:00:07]} Bc5 {[%emt 0:00:40]} 33. Re2 {[%emt 0:00:21]} Rc7 {[%emt 0:00:49]} 34. Rc2 {[%emt 0:02:20]} Rcd7 {[%emt 0:00:32]} 35. Rc3 {[%emt 0:01:08]} Rd2 {[%emt 0:01:01]} 36. Rf3 {[%emt 0:00:01]} Qe7 {[%emt 0:00:13]} 37. Qf5 {[%emt 0:01:10]} g6 {[%emt 0:00:43]} 38. Qg4 {[%emt 0:00:01]} Rf8 {[%emt 0:00:55]} 39. h5 {[%emt 0:00:49]} Rxf3 {[%emt 0:00:53]} 40. Bxf3 {[%emt 0:01:59]} Kg7 {[%emt 0:03:18]} 41. a4 {[%emt 0:03:21]} Qd7 {[%emt 0:08:26]} 42. hxg6 {[%emt 0:03:17]} hxg6 {[%emt 0:02:54]} 43. Qxd7+ {[%emt 0:00:08]} Rxd7 {[%emt 0:00:05]} 44. Rd1 {[%emt 0:00:06]} Rxd1 1/2-1/2

[Event "Niedersachsen-ch 2020"]
[Site "Verden-Aller"]
[Date "2020.01.02"]
[Round "1.7"]
[White "Hartogh, Christian"]
[Black "Hoerstmann, Rudi"]
[Result "1-0"]
[ECO "B06"]
[WhiteElo "2075"]
[BlackElo "2241"]
[Annotator "ChessBase"]
[PlyCount "113"]
[EventDate "2020.01.02"]
[EventType "swiss"]
[EventCountry "GER"]
[SourceTitle "playchess.com"]
[Source "ChessBase"]
[SourceQuality "1"]
[TimeControl "40/5400+30:1800+30"]

1. e4 {[%emt 0:00:00]} g6 {[%emt 0:00:00]} 2. d4 {[%emt 0:00:00]} Bg7 {[%emt 0:00:00]} 3. Nc3 {[%emt 0:00:05]} d6 {[%emt 0:00:08]} 4. Be3 {[%emt 0:01:28]} a6 {[%emt 0:00:09]} 5. Qd2 {[%emt 0:04:02]} b5 {[%emt 0:01:28]} 6. O-O-O {[%emt 0:03:00]} Nd7 {[%emt 0:05:07]} 7. g4 {[%emt 0:06:33]} Bb7 {[%emt 0:01:49]} 8. f3 {[%emt 0:03:38]} Rc8 {[%emt 0:15:19]} 9. Kb1 {[%emt 0:02:11]} c6 {[%emt 0:23:12]} 10. h4 {[%emt 0:07:41]} h6 {[%emt 0:00:39]} 11. Nh3 {[%emt 0:07:38]} Qc7 {[%emt 0:03:02]} 12. h5 {[%emt 0:00:58]} g5 {[%emt 0:00:37]} 13. f4 {[%emt 0:00:25]} gxf4 {[%emt 0:04:01]} 14. Bxf4 {[%emt 0:00:31]} b4 {[%emt 0:11:46]} 15. Ne2 {[%emt 0:01:15]} c5 {[%emt 0:00:13]} 16. d5 {[%emt 0:02:14]} Nb6 {[%emt 0:01:48]} 17. Qd3 {[%emt 0:08:37]} Nf6 {[%emt 0:07:08]} 18. g5 {[%emt 0:02:07]} hxg5 {[%emt 0:03:08]} 19. Nxg5 {[%emt 0:00:14]} Rxh5 {[%emt 0:09:23]} 20. Bh3 {[%emt 0:04:02]} Rb8 {[%emt 0:01:11]} 21. Qg3 Nbxd5 {[%emt 0:05:48]} 22. exd5 {[%emt 0:03:06]} Bxd5 {[%emt 0:00:03]} 23. Rxd5 {[%emt 0:03:37]} Nxd5 {[%emt 0:00:06]} 24. Bd7+ {[%emt 0:01:00]} Kxd7 {[%emt 0:01:29]} 25. Rxh5 {[%emt 0:00:08]} Bf6 {[%emt 0:03:43]} 26. Ne4 {[%emt 0:01:03]} Qc6 {[%emt 0:00:24]} 27. Bxd6 {[%emt 0:03:46]} exd6 {[%emt 0:01:08]} 28. Rxd5 {[%emt 0:00:09]} Be7 {[%emt 0:00:35]} 29. Qf3 {[%emt 0:05:14]} Rf8 {[%emt 0:00:32]} 30. Nxc5+ {[%emt 0:00:55]} Ke8 {[%emt 0:00:17]} 31. Nd4 {[%emt 0:00:52]} Qc8 {[%emt 0:00:33]} 32. Nd3 {[%emt 0:01:13]} Rg8 {[%emt 0:00:14]} 33. Nf5 {[%emt 0:01:16]} Rg1+ {[%emt 0:00:26]} 34. Nc1 {[%emt 0:00:06]} Qe6 {[%emt 0:00:41]} 35. Nxe7 {[%emt 0:01:53]} Kxe7 {[%emt 0:00:03]} 36. Rd1 {[%emt 0:00:27]} Rxd1 {[%emt 0:00:23]} 37. Qxd1 {[%emt 0:00:06]} Qe4 {[%emt 0:00:51]} 38. Qe2 {[%emt 0:00:49]} f5 {[%emt 0:00:31]} 39. Qxe4+ {[%emt 0:00:15]} fxe4 {[%emt 0:00:02]} 40. Ne2 {[%emt 0:00:08]} Ke6 {[%emt 0:01:26]} 41. Kc1 {[%emt 0:30:11]} Ke5 {[%emt 0:01:07]} 42. Kd2 {[%emt 0:00:00]} d5 {[%emt 0:00:09]} 43. Ke3 {[%emt 0:00:00]} a5 {[%emt 0:00:48]} 44. Nd4 {[%emt 0:00:00]} Kd6 {[%emt 0:00:13]} 45. b3 {[%emt 0:00:00]} Kc5 {[%emt 0:00:53]} 46. Nf5 {[%emt 0:00:00]} a4 {[%emt 0:00:42]} 47. bxa4 {[%emt 0:00:00]} Kc4 {[%emt 0:00:07]} 48. Nd4 {[%emt 0:00:00]} Kc5 {[%emt 0:00:23]} 49. a5 {[%emt 0:00:00]} Kd6 {[%emt 0:00:17]} 50. Nb3 {[%emt 0:00:00]} Kc6 {[%emt 0:00:30]} 51. Kd4 {[%emt 0:00:00]} Kb5 {[%emt 0:00:12]} 52. Kxd5 {[%emt 0:00:00]} e3 {[%emt 0:00:07]} 53. Ke4 {[%emt 0:00:00]} e2 {[%emt 0:00:08]} 54. Nd4+ {[%emt 0:00:00]} Kxa5 {[%emt 0:00:09]} 55. Nxe2 {[%emt 0:00:00]} Ka4 {[%emt 0:00:07]} 56. Kd4 {[%emt 0:00:00]} Ka3 {[%emt 0:00:09]} 57. Kc4 {[%emt 0:00:00]} 1-0